[Event "*** Titled Tuesday Blitz"]
[Site "Chess.com"]
[Date "2019.11.05"]
[Round "1"]
[White "Keaton87"]
[Black "mjray79"]
[Result "0-1"]
[WhiteElo "2577"]
[BlackElo "2214"]
[TimeControl "180+2"]
[EndTime "13:08:29 PST"]
[Termination "mjray79 won by checkmate"]

1. d4 {[%clk 0:03:01.9]} 1... Nf6 {[%clk 0:02:57.1]} 2. Bg5 {[%clk 0:03:02.6]}
2... d5 {[%clk 0:02:55.2]} 3. Nd2 {[%clk 0:03:01.7]} 3... e6 {[%clk 0:02:54.3]}
4. e3 {[%clk 0:03:02.2]} 4... Be7 {[%clk 0:02:55.1]} 5. Bd3 {[%clk 0:03:03]}
5... O-O {[%clk 0:02:56.4]} 6. f4 {[%clk 0:03:03.7]} 6... b6 {[%clk 0:02:57]} 7.
c3 {[%clk 0:02:58.5]} 7... c5 {[%clk 0:02:53.9]} 8. Ngf3 {[%clk 0:02:56.8]} 8...
Bb7 {[%clk 0:02:24.2]} 9. Qb1 {[%clk 0:02:56.7]} 9... Nbd7 {[%clk 0:02:23.1]}
10. Ne5 {[%clk 0:02:56.3]} 10... h6 {[%clk 0:02:19.3]} 11. Bh4 {[%clk
0:02:56.4]} 11... Nxe5 {[%clk 0:02:07.6]} 12. fxe5 {[%clk 0:02:57]} 12... Ng4
{[%clk 0:02:04.2]} 13. Bxe7 {[%clk 0:02:47.9]} 13... Qxe7 {[%clk 0:02:04.1]} 14.
Nf1 {[%clk 0:02:23.6]} 14... Qh4+ {[%clk 0:02:00.7]} 15. g3 {[%clk 0:02:24.1]}
15... Qh3 {[%clk 0:01:40.5]} 16. Qc2 {[%clk 0:02:11.5]} 16... f6 {[%clk
0:01:34.3]} 17. exf6 {[%clk 0:01:34.6]} 17... Rxf6 {[%clk 0:01:33.9]} 18. Be2
{[%clk 0:01:36]} 18... Qg2 {[%clk 0:01:26.6]} 19. O-O-O {[%clk 0:01:14.8]} 19...
Rf2 {[%clk 0:01:21.3]} 20. Qg6 {[%clk 0:00:44.6]} 20... Rxe2 {[%clk 0:01:11.7]}
21. Nd2 {[%clk 0:00:38.8]} 21... Rxd2 {[%clk 0:01:03.9]} 22. Rxd2 {[%clk
0:00:34.1]} 22... Qxh1+ {[%clk 0:01:03.1]} 23. Rd1 {[%clk 0:00:35.2]} 23... Qe4
{[%clk 0:01:03.1]} 24. Qh5 {[%clk 0:00:35.3]} 24... Qxe3+ {[%clk 0:00:59.9]} 25.
Kb1 {[%clk 0:00:36]} 25... Qg5 {[%clk 0:00:50.1]} 26. Qh3 {[%clk 0:00:36.5]}
26... Qf5+ {[%clk 0:00:50.6]} 27. Ka1 {[%clk 0:00:37.2]} 27... Nf2 {[%clk
0:00:50.7]} 28. Qxf5 {[%clk 0:00:36.6]} 28... exf5 {[%clk 0:00:50.6]} 29. Rf1
{[%clk 0:00:38]} 29... Re8 {[%clk 0:00:49]} 30. a4 {[%clk 0:00:37.6]} 30... Re2
{[%clk 0:00:49.1]} 31. Ka2 {[%clk 0:00:38.2]} 31... g6 {[%clk 0:00:48.7]} 32.
Kb3 {[%clk 0:00:39.1]} 32... Nd3 {[%clk 0:00:46.3]} 33. dxc5 {[%clk 0:00:39.2]}
33... Rxb2+ {[%clk 0:00:45.7]} 34. Ka3 {[%clk 0:00:40.7]} 34... bxc5 {[%clk
0:00:42.4]} 35. Rd1 {[%clk 0:00:41.2]} 35... c4 {[%clk 0:00:42.7]} 36. Rxd3
{[%clk 0:00:40.8]} 36... cxd3 {[%clk 0:00:38.9]} 37. Kxb2 {[%clk 0:00:42.2]}
37... Ba6 {[%clk 0:00:38.4]} 38. Kc1 {[%clk 0:00:43.3]} 38... Kf7 {[%clk
0:00:38.9]} 39. Kd2 {[%clk 0:00:44.9]} 39... Ke7 {[%clk 0:00:39]} 40. Ke3 {[%clk
0:00:46.8]} 40... Kd6 {[%clk 0:00:39.7]} 41. h4 {[%clk 0:00:47.3]} 41... Kc5
{[%clk 0:00:37.8]} 42. Kd2 {[%clk 0:00:48.3]} 42... Kc4 {[%clk 0:00:36.9]} 43.
a5 {[%clk 0:00:48.9]} 43... d4 {[%clk 0:00:35]} 44. cxd4 {[%clk 0:00:49.8]}
44... Kxd4 {[%clk 0:00:35.6]} 45. h5 {[%clk 0:00:51.4]} 45... gxh5 {[%clk
0:00:35.6]} 46. Ke1 {[%clk 0:00:52.2]} 46... Ke3 {[%clk 0:00:35.7]} 47. Kd1
{[%clk 0:00:53.4]} 47... d2 {[%clk 0:00:36.1]} 48. g4 {[%clk 0:00:54.5]} 48...
Be2+ {[%clk 0:00:36.7]} 49. Kc2 {[%clk 0:00:55.4]} 49... d1=Q+ {[%clk
0:00:37.1]} 50. Kb2 {[%clk 0:00:56.9]} 50... Qd4+ {[%clk 0:00:34.6]} 51. Kc1
{[%clk 0:00:57.7]} 51... Qc3+ {[%clk 0:00:34.6]} 52. Kb1 {[%clk 0:00:58.9]}
52... Bd3+ {[%clk 0:00:35.3]} 53. Ka2 {[%clk 0:01:00.2]} 53... Bc2 {[%clk
0:00:30.8]} 54. a6 {[%clk 0:01:00.4]} 54... Qb3+ {[%clk 0:00:31.7]} 55. Ka1
{[%clk 0:01:01.7]} 55... Qb1# {[%clk 0:00:32.6]} 0-1

[Event "*** Titled Tuesday Blitz"]
[Site "Chess.com"]
[Date "2019.11.05"]
[Round "1"]
[White "ural58"]
[Black "Darhild"]
[Result "1/2-1/2"]
[WhiteElo "2393"]
[BlackElo "2697"]
[TimeControl "180+2"]
[EndTime "13:08:30 PST"]
[Termination "Game drawn by repetition"]

1. Nc3 {[%clk 0:02:52.9]} 1... c5 {[%clk 0:02:57.4]} 2. d4 {[%clk 0:02:53.4]}
2... cxd4 {[%clk 0:02:57.5]} 3. Qxd4 {[%clk 0:02:55.3]} 3... Nc6 {[%clk
0:02:58.8]} 4. Qd3 {[%clk 0:02:56.8]} 4... g6 {[%clk 0:02:56.2]} 5. e4 {[%clk
0:02:56.2]} 5... Bg7 {[%clk 0:02:57.4]} 6. Nf3 {[%clk 0:02:57.2]} 6... d6 {[%clk
0:02:57.1]} 7. Be2 {[%clk 0:02:53.9]} 7... Bg4 {[%clk 0:02:53.5]} 8. O-O {[%clk
0:02:50.5]} 8... Nf6 {[%clk 0:02:54.1]} 9. Nd5 {[%clk 0:02:50.7]} 9... O-O
{[%clk 0:02:44.7]} 10. Nxf6+ {[%clk 0:02:51.5]} 10... Bxf6 {[%clk 0:02:45.7]}
11. c3 {[%clk 0:02:53.1]} 11... Ne5 {[%clk 0:02:32.8]} 12. Nxe5 {[%clk
0:02:51.4]} 12... Bxe2 {[%clk 0:02:33.6]} 13. Qxe2 {[%clk 0:02:44]} 13... Bxe5
{[%clk 0:02:33.7]} 14. Bh6 {[%clk 0:02:41.9]} 14... Bg7 {[%clk 0:02:30.2]} 15.
Bxg7 {[%clk 0:02:41.5]} 15... Kxg7 {[%clk 0:02:32.1]} 16. e5 {[%clk 0:02:38]}
16... d5 {[%clk 0:02:14.7]} 17. e6 {[%clk 0:02:37.6]} 17... Qd6 {[%clk
0:02:07.8]} 18. exf7 {[%clk 0:02:36.1]} 18... Rxf7 {[%clk 0:02:08.8]} 19. Rae1
{[%clk 0:02:36]} 19... Raf8 {[%clk 0:02:09.3]} 20. Qe3 {[%clk 0:02:33.3]} 20...
a6 {[%clk 0:01:51.7]} 21. f3 {[%clk 0:02:34.1]} 21... Rc8 {[%clk 0:01:42.4]} 22.
Re2 {[%clk 0:02:32.3]} 22... Re8 {[%clk 0:01:20.1]} 23. Rfe1 {[%clk 0:02:33]}
23... e5 {[%clk 0:01:19.1]} 24. Rd2 {[%clk 0:02:30.5]} 24... Rd7 {[%clk
0:01:05.5]} 25. h3 {[%clk 0:02:31]} 25... Ree7 {[%clk 0:01:03.9]} 26. Qf2 {[%clk
0:02:30.5]} 26... h5 {[%clk 0:00:55]} 27. Kh1 {[%clk 0:02:27.8]} 27... Kh7
{[%clk 0:00:55.5]} 28. Qh4 {[%clk 0:02:28.6]} 28... Qe6 {[%clk 0:00:35.3]} 29.
Red1 {[%clk 0:02:27.4]} 29... d4 {[%clk 0:00:26]} 30. cxd4 {[%clk 0:02:22.7]}
30... exd4 {[%clk 0:00:26]} 31. Rxd4 {[%clk 0:02:21.6]} 31... Rxd4 {[%clk
0:00:26]} 32. Rxd4 {[%clk 0:02:22.4]} 32... Qe2 {[%clk 0:00:21.8]} 33. Kh2
{[%clk 0:02:01.8]} 33... Rf7 {[%clk 0:00:19.8]} 34. Qe4 {[%clk 0:01:43.7]} 34...
Qxb2 {[%clk 0:00:18.1]} 35. a4 {[%clk 0:01:39.2]} 35... Qb6 {[%clk 0:00:15.9]}
36. Qe5 {[%clk 0:01:32.4]} 36... Qf6 {[%clk 0:00:10.4]} 37. Qxf6 {[%clk
0:01:30.2]} 37... Rxf6 {[%clk 0:00:12.3]} 38. Rd7+ {[%clk 0:01:30.6]} 38... Kh6
{[%clk 0:00:13.7]} 39. Rxb7 {[%clk 0:01:31.2]} 39... Rf4 {[%clk 0:00:15]} 40. g3
{[%clk 0:01:24.2]} 40... Rxa4 {[%clk 0:00:15.8]} 41. h4 {[%clk 0:01:25.3]} 41...
Ra3 {[%clk 0:00:15.9]} 42. Kg2 {[%clk 0:01:24.6]} 42... Ra2+ {[%clk 0:00:16.3]}
43. Kh3 {[%clk 0:01:25.4]} 43... Ra3 {[%clk 0:00:18.2]} 44. Kg2 {[%clk
0:01:19.4]} 44... Ra2+ {[%clk 0:00:19.5]} 45. Kf1 {[%clk 0:01:17.8]} 45... Ra3
{[%clk 0:00:21.4]} 46. Kf2 {[%clk 0:01:17.4]} 46... Ra4 {[%clk 0:00:20.1]} 47.
Kg2 {[%clk 0:01:10.7]} 47... Ra2+ {[%clk 0:00:20.4]} 1/2-1/2

[Event "*** Titled Tuesday Blitz"]
[Site "Chess.com"]
[Date "2019.11.05"]
[Round "1"]
[White "tteshan"]
[Black "zim0ne"]
[Result "1-0"]
[WhiteElo "2290"]
[BlackElo "2618"]
[TimeControl "180+2"]
[EndTime "13:08:37 PST"]
[Termination "tteshan won by resignation"]

1. d4 {[%clk 0:03:01.9]} 1... Nf6 {[%clk 0:03:00.5]} 2. c4 {[%clk 0:03:03.1]}
2... g6 {[%clk 0:03:01.6]} 3. Nc3 {[%clk 0:03:04.6]} 3... Bg7 {[%clk 0:03:03]}
4. e4 {[%clk 0:03:06.1]} 4... d6 {[%clk 0:03:04.4]} 5. Be2 {[%clk 0:03:07.3]}
5... O-O {[%clk 0:03:05.6]} 6. Bg5 {[%clk 0:03:08.7]} 6... Nc6 {[%clk
0:03:04.9]} 7. Nf3 {[%clk 0:03:07.2]} 7... h6 {[%clk 0:03:05.2]} 8. Be3 {[%clk
0:03:07.2]} 8... e5 {[%clk 0:03:06.3]} 9. d5 {[%clk 0:03:07.2]} 9... Ne7 {[%clk
0:03:07.5]} 10. Qd2 {[%clk 0:03:07.6]} 10... Ng4 {[%clk 0:03:08.6]} 11. h4
{[%clk 0:02:43.9]} 11... Nxe3 {[%clk 0:03:08.6]} 12. Qxe3 {[%clk 0:02:45.8]}
12... f5 {[%clk 0:03:09.8]} 13. exf5 {[%clk 0:02:41.3]} 13... Nxf5 {[%clk
0:03:09]} 14. Qe4 {[%clk 0:02:32.7]} 14... Qf6 {[%clk 0:03:09.2]} 15. h5 {[%clk
0:02:21.7]} 15... g5 {[%clk 0:03:09.4]} 16. Bd3 {[%clk 0:02:13.4]} 16... Rf7
{[%clk 0:03:10.5]} 17. Qe2 {[%clk 0:02:12.6]} 17... g4 {[%clk 0:03:00.5]} 18.
Ne4 {[%clk 0:01:42.9]} 18... Qe7 {[%clk 0:03:00.8]} 19. Nfd2 {[%clk 0:01:44]}
19... Nd4 {[%clk 0:03:00.8]} 20. Qe3 {[%clk 0:01:41.7]} 20... Bf5 {[%clk
0:02:57.6]} 21. Rc1 {[%clk 0:01:30.1]} 21... Raf8 {[%clk 0:02:56.9]} 22. b4
{[%clk 0:01:05.9]} 22... Bd7 {[%clk 0:02:53.4]} 23. c5 {[%clk 0:01:03.5]} 23...
Nf5 {[%clk 0:02:42.7]} 24. Qe2 {[%clk 0:01:02]} 24... Nh4 {[%clk 0:02:42.9]} 25.
cxd6 {[%clk 0:00:49.6]} 25... cxd6 {[%clk 0:02:44.8]} 26. Rg1 {[%clk 0:00:47.6]}
26... Bc8 {[%clk 0:02:36.4]} 27. Nc4 {[%clk 0:00:45.8]} 27... Nf5 {[%clk
0:02:34.8]} 28. Ne3 {[%clk 0:00:44.9]} 28... Nd4 {[%clk 0:02:34.3]} 29. Qd2
{[%clk 0:00:44.3]} 29... Bf6 {[%clk 0:02:15.1]} 30. Nc4 {[%clk 0:00:44.5]} 30...
Bg5 {[%clk 0:02:15.9]} 31. Nxg5 {[%clk 0:00:42.1]} 31... hxg5 {[%clk 0:02:17.8]}
32. Rf1 {[%clk 0:00:41.3]} 32... Kg7 {[%clk 0:02:06.3]} 33. Bg6 {[%clk 0:00:42]}
33... Rf6 {[%clk 0:02:05.9]} 34. Ne3 {[%clk 0:00:42.7]} 34... Kh6 {[%clk
0:02:05.7]} 35. Qd1 {[%clk 0:00:35.8]} 35... Rf4 {[%clk 0:02:02.8]} 36. Qd3
{[%clk 0:00:34]} 36... b6 {[%clk 0:02:00.1]} 37. Rc3 {[%clk 0:00:33.8]} 37...
Bd7 {[%clk 0:01:53.5]} 38. Qd1 {[%clk 0:00:19.4]} 38... Bb5 {[%clk 0:01:52.9]}
39. Nxg4+ {[%clk 0:00:20.3]} 39... Rxg4 {[%clk 0:01:54.2]} 40. Qxg4 {[%clk
0:00:21.8]} 40... Bxf1 {[%clk 0:01:53.3]} 41. Kxf1 {[%clk 0:00:23.7]} 41... Qf6
{[%clk 0:01:53]} 42. Qg3 {[%clk 0:00:25]} 42... Qe7 {[%clk 0:01:44.2]} 43. f3
{[%clk 0:00:26.3]} 43... e4 {[%clk 0:01:39.5]} 44. Re3 {[%clk 0:00:27.1]} 44...
Rf4 {[%clk 0:01:34.7]} 45. Bxe4 {[%clk 0:00:26.3]} 45... Nf5 {[%clk 0:01:32.5]}
46. Qf2 {[%clk 0:00:23.9]} 46... Nxe3+ {[%clk 0:01:32.4]} 47. Qxe3 {[%clk
0:00:25.8]} 47... Kxh5 {[%clk 0:01:26]} 48. Bg6+ {[%clk 0:00:26.4]} 48... Kxg6
{[%clk 0:01:26.2]} 49. Qxe7 {[%clk 0:00:28.3]} 49... Rf6 {[%clk 0:01:26.2]} 50.
Qe8+ {[%clk 0:00:29.5]} 50... Kg7 {[%clk 0:01:27.2]} 51. Qe7+ {[%clk 0:00:30.9]}
51... Kg6 {[%clk 0:01:27.9]} 52. Qxa7 {[%clk 0:00:32.4]} 52... g4 {[%clk
0:01:29.5]} 53. Qxb6 {[%clk 0:00:32.9]} 53... gxf3 {[%clk 0:01:30.9]} 54. gxf3
{[%clk 0:00:34.8]} 54... Rxf3+ {[%clk 0:01:32.2]} 55. Ke2 {[%clk 0:00:36.4]}
55... Rf6 {[%clk 0:01:34]} 56. Qd8 {[%clk 0:00:37.2]} 56... Kf5 {[%clk
0:01:34.4]} 57. b5 {[%clk 0:00:38.4]} 57... Rh6 {[%clk 0:01:34.8]} 58. Qf8+
{[%clk 0:00:38.4]} 58... Rf6 {[%clk 0:01:35.3]} 59. Qxf6+ {[%clk 0:00:38.3]}
59... Kxf6 {[%clk 0:01:37.2]} 60. b6 {[%clk 0:00:39.7]} 60... Ke7 {[%clk
0:01:38.6]} 61. b7 {[%clk 0:00:41.2]} 61... Kd8 {[%clk 0:01:40.3]} 62. b8=Q+
{[%clk 0:00:42.4]} 62... Kd7 {[%clk 0:01:42.2]} 63. a4 {[%clk 0:00:42.8]} 1-0

[Event "*** Titled Tuesday Blitz"]
[Site "Chess.com"]
[Date "2019.11.05"]
[Round "1"]
[White "Borsuk_Konstantin"]
[Black "Bagirova"]
[Result "0-1"]
[WhiteElo "2533"]
[BlackElo "2109"]
[TimeControl "180+2"]
[EndTime "13:08:37 PST"]
[Termination "Bagirova won by resignation"]

1. d4 {[%clk 0:03:01.6]} 1... Nf6 {[%clk 0:02:59.4]} 2. c4 {[%clk 0:03:01.7]}
2... e6 {[%clk 0:03:00.5]} 3. Nc3 {[%clk 0:03:01.1]} 3... c5 {[%clk 0:03:01.9]}
4. d5 {[%clk 0:03:01.5]} 4... exd5 {[%clk 0:03:03.3]} 5. cxd5 {[%clk 0:03:02.8]}
5... d6 {[%clk 0:03:04.8]} 6. Nf3 {[%clk 0:03:03.4]} 6... g6 {[%clk 0:03:06]} 7.
g3 {[%clk 0:03:04.6]} 7... Bg7 {[%clk 0:03:07.4]} 8. Bg2 {[%clk 0:03:05.9]} 8...
O-O {[%clk 0:03:08.9]} 9. O-O {[%clk 0:03:06.9]} 9... a6 {[%clk 0:03:09.9]} 10.
a4 {[%clk 0:03:07.5]} 10... Re8 {[%clk 0:03:10.9]} 11. Nd2 {[%clk 0:03:08]}
11... Nbd7 {[%clk 0:03:09.7]} 12. h3 {[%clk 0:03:04.9]} 12... Qc7 {[%clk
0:03:09]} 13. Nc4 {[%clk 0:02:47.3]} 13... Rb8 {[%clk 0:02:56]} 14. Na3 {[%clk
0:02:19.3]} 14... Nf8 {[%clk 0:02:48.5]} 15. Rb1 {[%clk 0:02:13.3]} 15... h6
{[%clk 0:02:47.7]} 16. Bd2 {[%clk 0:02:12.4]} 16... g5 {[%clk 0:02:47.9]} 17. b4
{[%clk 0:02:09.4]} 17... Bf5 {[%clk 0:02:46.4]} 18. Rb3 {[%clk 0:02:02.5]} 18...
c4 {[%clk 0:02:35]} 19. Rb2 {[%clk 0:02:02.4]} 19... Ne4 {[%clk 0:02:36.2]} 20.
Qc1 {[%clk 0:01:41.2]} 20... Qe7 {[%clk 0:02:12.6]} 21. Ra2 {[%clk 0:01:27.6]}
21... Rbc8 {[%clk 0:02:05.9]} 22. Nab1 {[%clk 0:01:07.5]} 22... Qe5 {[%clk
0:01:55.3]} 23. Nxe4 {[%clk 0:01:00]} 23... Bxe4 {[%clk 0:01:55.3]} 24. Bc3
{[%clk 0:00:39.1]} 24... Qxd5 {[%clk 0:01:45.8]} 25. Bxg7 {[%clk 0:00:39.5]}
25... Bxg2 {[%clk 0:01:46.5]} 26. Rd1 {[%clk 0:00:40.3]} 26... Qc6 {[%clk
0:01:41.2]} 27. Bxh6 {[%clk 0:00:35.8]} 27... Bxh3 {[%clk 0:01:33.8]} 28. Qxg5+
{[%clk 0:00:36]} 28... Ng6 {[%clk 0:01:35.1]} 29. f3 {[%clk 0:00:31.5]} 29...
Rxe2 {[%clk 0:01:31.9]} 30. Rxe2 {[%clk 0:00:31.1]} 30... Qxf3 {[%clk
0:01:31.7]} 31. Rde1 {[%clk 0:00:25]} 31... Bg4 {[%clk 0:00:57.8]} 32. Rf2
{[%clk 0:00:24.9]} 32... Qxg3+ {[%clk 0:00:58.4]} 33. Rg2 {[%clk 0:00:24.9]}
33... Qxe1+ {[%clk 0:00:56.3]} 34. Kh2 {[%clk 0:00:25.5]} 34... Qe5+ {[%clk
0:00:56.6]} 35. Qxe5 {[%clk 0:00:25.4]} 35... Nxe5 {[%clk 0:00:57.9]} 36. Nc3
{[%clk 0:00:24.7]} 36... Kh7 {[%clk 0:00:58.7]} 37. Bf4 {[%clk 0:00:23.5]} 37...
Rg8 {[%clk 0:00:57.6]} 38. Ne4 {[%clk 0:00:21]} 38... Nf3+ {[%clk 0:00:52.1]}
39. Kh1 {[%clk 0:00:20.8]} 39... Kh8 {[%clk 0:00:49]} 40. Nxd6 {[%clk
0:00:16.7]} 40... Rg7 {[%clk 0:00:47.1]} 41. Bh6 {[%clk 0:00:11.2]} 41... Rh7
{[%clk 0:00:46.1]} 42. Rxg4 {[%clk 0:00:09.2]} 42... Rxh6+ {[%clk 0:00:47.3]}
0-1

[Event "*** Titled Tuesday Blitz"]
[Site "Chess.com"]
[Date "2019.11.05"]
[Round "1"]
[White "kuli4ik"]
[Black "r31415"]
[Result "1-0"]
[WhiteElo "2826"]
[BlackElo "2440"]
[TimeControl "180+2"]
[EndTime "13:08:38 PST"]
[Termination "kuli4ik won by resignation"]

1. Nf3 {[%clk 0:02:09.5]} 1... d6 {[%clk 0:03:00]} 2. g3 {[%clk 0:02:10.7]} 2...
g6 {[%clk 0:03:01.2]} 3. Bg2 {[%clk 0:02:11.7]} 3... Bg7 {[%clk 0:03:03.1]} 4.
O-O {[%clk 0:02:12]} 4... f5 {[%clk 0:03:04.6]} 5. d3 {[%clk 0:02:11.9]} 5...
Nf6 {[%clk 0:03:05.8]} 6. Nc3 {[%clk 0:02:12]} 6... O-O {[%clk 0:03:06.7]} 7. e4
{[%clk 0:02:13]} 7... e5 {[%clk 0:03:08.4]} 8. exf5 {[%clk 0:02:10.1]} 8... gxf5
{[%clk 0:03:08.9]} 9. d4 {[%clk 0:02:11.5]} 9... e4 {[%clk 0:03:05.7]} 10. Ng5
{[%clk 0:02:07.3]} 10... Qe8 {[%clk 0:02:56.3]} 11. d5 {[%clk 0:02:06.6]} 11...
Na6 {[%clk 0:02:53.2]} 12. Ne2 {[%clk 0:02:01.7]} 12... h6 {[%clk 0:02:51.3]}
13. Nh3 {[%clk 0:01:59.6]} 13... Qf7 {[%clk 0:02:32.8]} 14. Nhf4 {[%clk
0:01:58]} 14... Bd7 {[%clk 0:02:13.4]} 15. c4 {[%clk 0:01:57.4]} 15... b5 {[%clk
0:02:00.4]} 16. cxb5 {[%clk 0:01:55.4]} 16... Bxb5 {[%clk 0:02:00.8]} 17. Re1
{[%clk 0:01:52.4]} 17... Nc5 {[%clk 0:01:56.2]} 18. Nc3 {[%clk 0:01:47.6]} 18...
Bd7 {[%clk 0:01:52.8]} 19. Be3 {[%clk 0:01:46.8]} 19... Rfb8 {[%clk 0:01:47.4]}
20. Rb1 {[%clk 0:01:46.3]} 20... Nb7 {[%clk 0:01:30]} 21. Rc1 {[%clk 0:01:34.6]}
21... Nd8 {[%clk 0:01:23.8]} 22. b3 {[%clk 0:01:32.2]} 22... a5 {[%clk
0:01:25.1]} 23. h3 {[%clk 0:01:29.9]} 23... Qe8 {[%clk 0:01:16.3]} 24. a4 {[%clk
0:01:25.4]} 24... Rb7 {[%clk 0:01:07.2]} 25. Bf1 {[%clk 0:01:25.8]} 25... Nf7
{[%clk 0:01:02.3]} 26. Nb5 {[%clk 0:01:25.2]} 26... Rc8 {[%clk 0:00:50.9]} 27.
Nd4 {[%clk 0:01:17.4]} 27... Ne5 {[%clk 0:00:50.6]} 28. Kg2 {[%clk 0:01:11.7]}
28... Rcb8 {[%clk 0:00:46.6]} 29. Re2 {[%clk 0:01:02.6]} 29... Nf3 {[%clk
0:00:45.2]} 30. Rec2 {[%clk 0:01:02.2]} 30... Nxd4 {[%clk 0:00:41.4]} 31. Bxd4
{[%clk 0:01:03.3]} 31... Qd8 {[%clk 0:00:35]} 32. Bc4 {[%clk 0:00:54.9]} 32...
Ne8 {[%clk 0:00:33.7]} 33. Ne6 {[%clk 0:00:49.1]} 33... Bxe6 {[%clk 0:00:34.9]}
34. dxe6 {[%clk 0:00:50.3]} 34... Qe7 {[%clk 0:00:36.8]} 35. Be3 {[%clk
0:00:44.2]} 35... c6 {[%clk 0:00:33.9]} 36. Ba6 {[%clk 0:00:44.1]} 36... Rxb3
{[%clk 0:00:31.2]} 37. Rxc6 {[%clk 0:00:45.1]} 37... Kh7 {[%clk 0:00:24.7]} 38.
Qh5 {[%clk 0:00:44.8]} 38... Qf6 {[%clk 0:00:16.3]} 39. Bb5 {[%clk 0:00:42.2]}
39... Qg6 {[%clk 0:00:10.1]} 40. Qxg6+ {[%clk 0:00:40.8]} 40... Kxg6 {[%clk
0:00:11.3]} 41. Rc8 {[%clk 0:00:42.7]} 41... Rxc8 {[%clk 0:00:07.8]} 42. Rxc8
{[%clk 0:00:44.6]} 42... Nf6 {[%clk 0:00:09.2]} 43. e7 {[%clk 0:00:42.5]} 43...
d5 {[%clk 0:00:06.5]} 44. Bd4 {[%clk 0:00:42]} 1-0

[Event "*** Titled Tuesday Blitz"]
[Site "Chess.com"]
[Date "2019.11.05"]
[Round "1"]
[White "ehrenfeld"]
[Black "wonderfultime"]
[Result "0-1"]
[WhiteElo "2500"]
[BlackElo "2954"]
[TimeControl "180+2"]
[EndTime "13:08:42 PST"]
[Termination "wonderfultime won by resignation"]

1. e4 {[%clk 0:03:01.9]} 1... c5 {[%clk 0:02:58.4]} 2. Nf3 {[%clk 0:03:01.3]}
2... Nf6 {[%clk 0:02:59.7]} 3. e5 {[%clk 0:03:00.1]} 3... Nd5 {[%clk 0:03:00.7]}
4. g3 {[%clk 0:03:01.2]} 4... Nc6 {[%clk 0:03:01.4]} 5. Bg2 {[%clk 0:03:01.5]}
5... g6 {[%clk 0:03:02.9]} 6. O-O {[%clk 0:03:01.7]} 6... Bg7 {[%clk 0:03:04.3]}
7. Re1 {[%clk 0:03:02]} 7... O-O {[%clk 0:03:05.1]} 8. c4 {[%clk 0:02:52.1]}
8... Nb6 {[%clk 0:03:05.5]} 9. d3 {[%clk 0:02:42.8]} 9... d5 {[%clk 0:03:02.3]}
10. exd6 {[%clk 0:02:43]} 10... Qxd6 {[%clk 0:02:56.9]} 11. Bf4 {[%clk
0:02:42.1]} 11... e5 {[%clk 0:02:57.6]} 12. Be3 {[%clk 0:02:39.2]} 12... Bf5
{[%clk 0:02:58.6]} 13. Nc3 {[%clk 0:02:37]} 13... Rad8 {[%clk 0:02:48.8]} 14.
Ne4 {[%clk 0:02:11.8]} 14... Bxe4 {[%clk 0:02:37.5]} 15. dxe4 {[%clk 0:02:12.8]}
15... Nd4 {[%clk 0:02:39.4]} 16. b3 {[%clk 0:02:10.1]} 16... Rfe8 {[%clk
0:02:37.2]} 17. Rc1 {[%clk 0:02:01.2]} 17... Nd7 {[%clk 0:02:38.2]} 18. Bg5
{[%clk 0:01:53.9]} 18... Bf6 {[%clk 0:02:35.4]} 19. Bd2 {[%clk 0:01:45.5]} 19...
Kf8 {[%clk 0:02:33.1]} 20. Nxd4 {[%clk 0:01:45.7]} 20... cxd4 {[%clk 0:02:08.9]}
21. b4 {[%clk 0:01:46.8]} 21... b6 {[%clk 0:02:08.9]} 22. Qb3 {[%clk 0:01:44]}
22... Kg7 {[%clk 0:02:05.6]} 23. Bh3 {[%clk 0:01:41.7]} 23... Be7 {[%clk
0:02:02]} 24. Rf1 {[%clk 0:01:38.5]} 24... Qc6 {[%clk 0:01:58.2]} 25. Qd3 {[%clk
0:01:38.5]} 25... Nf6 {[%clk 0:01:56.6]} 26. a3 {[%clk 0:01:37.9]} 26... Qxe4
{[%clk 0:01:57.1]} 27. Qb3 {[%clk 0:01:35.4]} 27... Qe2 {[%clk 0:01:55.4]} 28.
Rc2 {[%clk 0:01:33.8]} 28... Qh5 {[%clk 0:01:54.6]} 29. Bg2 {[%clk 0:01:33]}
29... e4 {[%clk 0:01:56]} 30. h3 {[%clk 0:01:29.2]} 30... Bd6 {[%clk 0:01:47.1]}
31. Qb2 {[%clk 0:01:27.2]} 31... Be5 {[%clk 0:01:43.2]} 32. Qc1 {[%clk 0:01:23]}
32... d3 {[%clk 0:01:30.9]} 33. Ra2 {[%clk 0:01:18.4]} 33... Bd4 {[%clk
0:01:32]} 34. g4 {[%clk 0:01:14.1]} 34... Qe5 {[%clk 0:01:28.8]} 35. Bf4 {[%clk
0:01:10.4]} 35... Qe6 {[%clk 0:01:30.1]} 36. Bh6+ {[%clk 0:01:00.5]} 36... Kg8
{[%clk 0:01:30.8]} 37. Kh1 {[%clk 0:01:01.4]} 37... Rc8 {[%clk 0:01:31.5]} 38.
Qf4 {[%clk 0:00:44.3]} 38... Qxc4 {[%clk 0:01:30.8]} 39. Rd2 {[%clk 0:00:38]}
39... Qc7 {[%clk 0:01:16.6]} 40. Qg5 {[%clk 0:00:32.8]} 40... Qe5 {[%clk
0:01:14.8]} 41. Qh4 {[%clk 0:00:32.5]} 41... Nd5 {[%clk 0:01:08.4]} 42. Re1
{[%clk 0:00:27.1]} 42... Nc3 {[%clk 0:01:06.5]} 43. Rxd3 {[%clk 0:00:25.4]}
43... exd3 {[%clk 0:01:07.8]} 44. Rxe5 {[%clk 0:00:25.7]} 44... Bxe5 {[%clk
0:01:09.7]} 45. Bg5 {[%clk 0:00:09.6]} 45... Nb1 {[%clk 0:01:04.8]} 46. Bf3
{[%clk 0:00:10.1]} 46... Nxa3 {[%clk 0:00:59.2]} 47. Bd5 {[%clk 0:00:10.5]}
47... Nc2 {[%clk 0:00:49.8]} 48. Bxf7+ {[%clk 0:00:09.9]} 48... Kxf7 {[%clk
0:00:50.8]} 49. Qxh7+ {[%clk 0:00:10.3]} 49... Bg7 {[%clk 0:00:52.3]} 0-1